[Event "1er Tournoi de GM du Barreau de Paris"]
[Site "Paris, France"]
[Date "2019.12.18"]
[Round "5.4"]
[White "MOUHAMAD, Joachim"]
[Black "MAURIZZI, Marc Andria"]
[Result "0-1"]
[TimeControl "1h30+30s\cp"]
[WhiteTitle "FM"]
[BlackTitle "IM"]
[WhiteElo "2293"]
[BlackElo "2404"]

1. d4 {[%clk 01:30:50]} {[%emt 00:00:09]} Nf6 {[%clk 01:30:52]} {[%emt
00:00:08]} 2. Bf4 {[%clk 01:30:56]} {[%emt 00:00:23]} d5 {[%clk 01:30:55]}
{[%emt 00:00:27]} 3. e3 {[%clk 01:31:13]} {[%emt 00:00:13]} c5 {[%clk
01:30:58]} {[%emt 00:00:26]} 4. Nf3 {[%clk 01:31:30]} {[%emt 00:00:13]} e6
{[%clk 01:30:59]} {[%emt 00:00:29]} 5. Nbd2 {[%clk 01:31:09]} {[%emt 00:00:51]}
Nc6 {[%clk 01:31:22]} {[%emt 00:00:07]} 6. c3 {[%clk 01:30:55]} {[%emt
00:00:45]} cxd4 {[%clk 01:31:01]} {[%emt 00:00:50]} 7. exd4 {[%clk 01:30:22]}
{[%emt 00:01:04]} Nh5 {[%clk 01:31:26]} {[%emt 00:00:06]} 8. Be3 {[%clk
01:30:33]} {[%emt 00:00:18]} Bd6 {[%clk 01:31:46]} {[%emt 00:00:10]} 9. Ne5
{[%clk 01:30:53]} {[%emt 00:00:11]} g6 {[%clk 01:32:00]} {[%emt 00:00:16]} 10.
Nd3 {[%clk 01:31:09]} {[%emt 00:00:13]} Ng7 {[%clk 01:28:07]} {[%emt 00:04:23]}
11. g3 {[%clk 01:31:32]} {[%emt 00:00:07]} O-O {[%clk 01:27:03]} {[%emt
00:01:34]} 12. Bg2 {[%clk 01:31:41]} {[%emt 00:00:21]} b6 {[%clk 01:21:58]}
{[%emt 00:05:36]} 13. O-O {[%clk 01:26:44]} {[%emt 00:05:27]} Ba6 {[%clk
01:18:49]} {[%emt 00:03:38]} 14. Nf3 {[%clk 01:26:54]} {[%emt 00:00:20]} Nf5
{[%clk 01:18:37]} {[%emt 00:00:43]} 15. Re1 {[%clk 01:23:25]} {[%emt 00:03:59]}
Nce7 {[%clk 01:13:15]} {[%emt 00:05:52]} 16. Bf4 {[%clk 01:16:00]} {[%emt
00:07:55]} Bxd3 {[%clk 01:12:42]} {[%emt 00:01:02]} 17. Bxd6 {[%clk 01:16:13]}
{[%emt 00:00:18]} Nxd6 {[%clk 01:13:04]} {[%emt 00:00:07]} 18. Qxd3 {[%clk
01:16:36]} {[%emt 00:00:08]} b5 {[%clk 01:09:33]} {[%emt 00:04:01]} 19. h4
{[%clk 00:58:34]} {[%emt 00:18:32]} Rb8 {[%clk 01:01:53]} {[%emt 00:08:11]} 20.
a3 {[%clk 00:57:29]} {[%emt 00:01:34]} h5 {[%clk 00:59:18]} {[%emt 00:03:06]}
21. Ng5 {[%clk 00:55:54]} {[%emt 00:02:05]} a5 {[%clk 00:55:28]} {[%emt
00:04:21]} 22. Bf3 {[%clk 00:51:16]} {[%emt 00:05:07]} Ndf5 {[%clk 00:52:11]}
{[%emt 00:03:47]} 23. Qe2 {[%clk 00:48:15]} {[%emt 00:03:31]} Ng7 {[%clk
00:51:50]} {[%emt 00:00:51]} 24. Qd2 {[%clk 00:42:42]} {[%emt 00:06:03]} Qd6
{[%clk 00:47:31]} {[%emt 00:04:49]} 25. Be2 {[%clk 00:40:48]} {[%emt 00:02:23]}
Ngf5 {[%clk 00:43:20]} {[%emt 00:04:41]} 26. Bf1 {[%clk 00:38:26]} {[%emt
00:02:52]} b4 {[%clk 00:37:25]} {[%emt 00:06:25]} 27. cxb4 {[%clk 00:36:38]}
{[%emt 00:02:18]} axb4 {[%clk 00:37:48]} {[%emt 00:00:07]} 28. a4 {[%clk
00:36:59]} {[%emt 00:00:09]} Qb6 {[%clk 00:36:38]} {[%emt 00:01:41]} 29. Nf3
{[%clk 00:37:01]} {[%emt 00:00:27]} Nc6 {[%clk 00:36:51]} {[%emt 00:00:17]} 30.
Rad1 {[%clk 00:36:21]} {[%emt 00:01:11]} Rfc8 {[%clk 00:30:42]} {[%emt
00:06:38]} 31. Bb5 {[%clk 00:35:04]} {[%emt 00:01:46]} Na7 {[%clk 00:28:00]}
{[%emt 00:03:13]} 32. Bf1 {[%clk 00:33:45]} {[%emt 00:01:48]} b3 {[%clk
00:26:18]} {[%emt 00:02:13]} 33. a5 {[%clk 00:18:19]} {[%emt 00:15:56]} Qb4
{[%clk 00:22:39]} {[%emt 00:04:09]} 34. Qg5 {[%clk 00:18:47]} {[%emt 00:00:02]}
Qe7 {[%clk 00:18:52]} {[%emt 00:04:17]} 35. Qf4 {[%clk 00:19:16]} {[%emt
00:00:01]} Qd6 {[%clk 00:16:10]} {[%emt 00:03:12]} 36. Re5 {[%clk 00:19:44]}
{[%emt 00:00:01]} Qc7 {[%clk 00:15:04]} {[%emt 00:01:37]} 37. Ba6 {[%clk
00:14:58]} {[%emt 00:05:16]} Nc6 {[%clk 00:14:29]} {[%emt 00:01:05]} 38. Rc1
{[%clk 00:12:54]} {[%emt 00:02:34]} Qd8 {[%clk 00:11:49]} {[%emt 00:03:09]} 39.
Rxf5 {[%clk 00:09:00]} {[%emt 00:04:24]} exf5 {[%clk 00:11:23]} {[%emt
00:00:56]} 40. Bxc8 {[%clk 00:09:24]} {[%emt 00:00:07]} Rxc8 {[%clk 00:11:51]}
{[%emt 00:00:03]} 41. Qh6 {[%clk 00:08:09]} {[%emt 00:01:45]} Nxa5 {[%emt
00:02:03]} 42. Ra1 {[%clk 00:06:36]} {[%emt 00:02:02]} Ra8 {[%clk 00:08:04]}
{[%emt 00:02:45]} 43. Ng5 {[%clk 00:05:40]} {[%emt 00:01:25]} Qf6 {[%clk
00:08:21]} {[%emt 00:00:13]} 44. Qh7+ {[%clk 00:04:02]} {[%emt 00:02:08]} Kf8
{[%clk 00:08:50]} {[%emt 00:00:01]} 45. Nf3 {[%clk 00:01:43]} {[%emt 00:02:49]}
Ra7 {[%clk 00:06:01]} {[%emt 00:03:19]} 46. Ne5 {[%clk 00:00:38]} {[%emt
00:01:35]} Qg7 {[%clk 00:06:18]} {[%emt 00:00:13]} 47. Qxg7+ {[%clk 00:00:55]}
{[%emt 00:00:14]} Kxg7 {[%clk 00:06:46]} {[%emt 00:00:01]} 48. Ra3 {[%clk
00:00:59]} {[%emt 00:00:26]} Nc6 {[%clk 00:06:33]} {[%emt 00:00:43]} 49. Rxa7
{[%clk 00:00:52]} {[%emt 00:00:38]} Nxa7 {[%clk 00:07:02]} 50. Kf1 {[%clk
00:01:00]} {[%emt 00:00:21]} Nb5 {[%clk 00:06:59]} {[%emt 00:00:33]} 51. Nc6
{[%clk 00:01:13]} {[%emt 00:00:16]} Kf6 {[%clk 00:04:28]} {[%emt 00:03:01]} 52.
Ke2 {[%clk 00:01:12]} {[%emt 00:00:32]} f4 {[%clk 00:04:24]} {[%emt 00:00:34]}
53. gxf4 {[%clk 00:00:37]} {[%emt 00:01:05]} Kf5 {[%clk 00:04:47]} {[%emt
00:00:07]} 54. Kf3 {[%clk 00:00:37]} {[%emt 00:00:30]} f6 {[%clk 00:05:10]}
{[%emt 00:00:07]} 55. Ne7+ {[%clk 00:00:51]} {[%emt 00:00:17]} Ke6 {[%clk
00:05:40]} 56. Nxg6 {[%clk 00:00:31]} {[%emt 00:00:50]} Nxd4+ {[%clk 00:06:00]}
{[%emt 00:00:09]} 57. Ke3 {[%clk 00:00:42]} {[%emt 00:00:19]} Nf5+ {[%clk
00:06:25]} {[%emt 00:00:06]} 0-1

[Event "1er Tournoi de GM du Barreau de Paris"]
[Site "Paris, France"]
[Date "2019.12.18"]
[Round "5.5"]
[White "RAKOTOMAHARO, Fy Antenaina"]
[Black "GULIYEV, Namig"]
[Result "1/2-1/2"]
[TimeControl "1h30+30s\cp"]
[WhiteTitle "IM"]
[BlackTitle "GM"]
[WhiteElo "2438"]
[BlackElo "2548"]

1. e4 {[%clk 01:30:57]} {[%emt 00:00:01]} c5 {[%clk 01:05:06]} {[%emt
00:25:55]} 2. Nf3 {[%clk 01:31:10]} {[%emt 00:00:17]} d6 {[%clk 01:05:32]}
{[%emt 00:00:05]} 3. d4 {[%clk 01:31:18]} {[%emt 00:00:21]} cxd4 {[%clk
01:05:57]} {[%emt 00:00:05]} 4. Nxd4 {[%clk 01:31:45]} {[%emt 00:00:03]} Nf6
{[%clk 01:06:22]} {[%emt 00:00:05]} 5. Nc3 {[%clk 01:32:10]} {[%emt 00:00:04]}
a6 {[%clk 01:06:50]} {[%emt 00:00:03]} 6. g3 {[%clk 01:29:32]} {[%emt
00:03:07]} Nc6 {[%clk 01:05:32]} {[%emt 00:01:49]} 7. Bg2 {[%clk 01:28:09]}
{[%emt 00:01:53]} Nxd4 {[%clk 01:05:54]} {[%emt 00:00:08]} 8. Qxd4 {[%clk
01:28:35]} {[%emt 00:00:04]} e5 {[%clk 01:06:19]} {[%emt 00:00:05]} 9. Qd3
{[%clk 01:28:28]} {[%emt 00:00:36]} Be6 {[%clk 01:06:38]} {[%emt 00:00:12]} 10.
Bg5 {[%clk 01:12:34]} {[%emt 00:16:23]} h6 {[%clk 01:06:15]} {[%emt 00:00:54]}
11. Bxf6 {[%clk 01:12:59]} {[%emt 00:00:05]} Qxf6 {[%clk 01:06:41]} {[%emt
00:00:04]} 12. Nd5 {[%clk 01:13:13]} {[%emt 00:00:16]} Qd8 {[%clk 01:07:00]}
{[%emt 00:00:11]} 13. O-O-O {[%clk 01:13:32]} {[%emt 00:00:11]} Rc8 {[%clk
01:06:50]} {[%emt 00:00:40]} 14. Qb3 {[%clk 01:12:59]} {[%emt 00:01:03]} b5
{[%clk 00:58:46]} {[%emt 00:08:34]} 15. a4 {[%clk 01:08:54]} {[%emt 00:04:36]}
Qa5 {[%clk 00:57:15]} {[%emt 00:02:01]} 16. axb5 {[%clk 01:08:49]} {[%emt
00:00:33]} axb5 {[%clk 00:57:41]} {[%emt 00:00:05]} 17. Bf1 {[%clk 01:08:11]}
{[%emt 00:01:09]} Bd7 {[%clk 00:50:27]} {[%emt 00:07:44]} 1/2-1/2



[ePGN "0.1;DGT LiveChess/2.2.5"]

[Event "1er Tournoi de GM du Barreau de Paris"]
[Site "Paris, France"]
[Date "2019.12.19"]
[Round "6.1"]
[White "FEDORCHUK, Sergey"]
[Black "RAKOTOMAHARO, Fy Antenaina"]
[Result "1-0"]
[TimeControl "1h30+30s\cp"]
[WhiteTitle "GM"]
[BlackTitle "IM"]
[WhiteElo "2636"]
[BlackElo "2438"]

1. e4 {[%clk 01:30:56]} {[%emt 00:00:02]} c5 {[%clk 01:15:37]} {[%emt
00:15:24]} 2. Nf3 {[%clk 01:30:50]} {[%emt 00:00:36]} d6 {[%clk 01:15:57]}
{[%emt 00:00:10]} 3. d4 {[%clk 01:28:43]} {[%emt 00:02:38]} cxd4 {[%clk
01:16:20]} {[%emt 00:00:06]} 4. Nxd4 {[%clk 01:28:59]} {[%emt 00:00:13]} Nf6
{[%clk 01:16:43]} {[%emt 00:00:08]} 5. Nc3 {[%clk 01:29:19]} {[%emt 00:00:10]}
a6 {[%clk 01:16:38]} {[%emt 00:00:35]} 6. a3 {[%clk 01:28:26]} {[%emt
00:01:23]} e6 {[%clk 01:05:23]} {[%emt 00:11:44]} 7. f4 {[%clk 01:14:20]}
{[%emt 00:14:36]} Qc7 {[%clk 00:59:40]} {[%emt 00:06:14]} 8. Bd3 {[%clk
01:08:25]} {[%emt 00:06:25]} Nbd7 {[%clk 00:45:01]} {[%emt 00:15:09]} 9. O-O
{[%clk 01:03:56]} {[%emt 00:04:59]} Nc5 {[%clk 00:45:13]} {[%emt 00:00:19]} 10.
Kh1 {[%clk 01:03:51]} {[%emt 00:00:35]} Be7 {[%clk 00:37:30]} {[%emt 00:08:12]}
11. Qe1 {[%clk 01:01:08]} {[%emt 00:03:12]} b6 {[%clk 00:23:55]} {[%emt
00:14:06]} 12. b4 {[%clk 00:54:43]} {[%emt 00:06:55]} Nxd3 {[%clk 00:20:29]}
{[%emt 00:03:56]} 13. cxd3 {[%clk 00:54:59]} {[%emt 00:00:15]} O-O {[%clk
00:20:50]} {[%emt 00:00:08]} 14. Bb2 {[%clk 00:52:41]} {[%emt 00:02:47]} Bb7
{[%clk 00:18:09]} {[%emt 00:03:11]} 15. Rf3 {[%clk 00:51:42]} {[%emt 00:01:29]}
Nd7 {[%clk 00:16:02]} {[%emt 00:02:38]} 16. Rh3 {[%clk 00:43:15]} {[%emt
00:08:57]} Bf6 {[%clk 00:14:55]} {[%emt 00:01:37]} 17. Nf3 {[%clk 00:43:22]}
{[%emt 00:00:23]} Rfc8 {[%clk 00:09:31]} {[%emt 00:05:54]} 18. d4 {[%clk
00:42:52]} {[%emt 00:01:00]} Nf8 {[%clk 00:03:54]} {[%emt 00:06:07]} 19. Rc1
{[%clk 00:38:34]} {[%emt 00:04:48]} Qd8 {[%clk 00:03:47]} {[%emt 00:00:38]} 20.
Rd1 {[%clk 00:38:45]} {[%emt 00:00:19]} Ng6 {[%clk 00:02:40]} {[%emt 00:01:37]}
21. Qe3 {[%clk 00:34:15]} {[%emt 00:04:59]} a5 {[%clk 00:02:37]} {[%emt
00:00:33]} 22. b5 {[%clk 00:32:51]} {[%emt 00:01:54]} Rc4 {[%clk 00:02:39]}
{[%emt 00:00:28]} 23. Rd3 {[%clk 00:19:36]} {[%emt 00:13:45]} Rac8 {[%clk
00:02:11]} {[%emt 00:00:57]} 24. Nd2 {[%clk 00:19:08]} {[%emt 00:00:58]} R4c7
{[%clk 00:02:28]} {[%emt 00:00:14]} 25. Kg1 {[%clk 00:16:54]} {[%emt 00:02:44]}
Qe8 {[%clk 00:02:43]} {[%emt 00:00:15]} 26. Rf3 {[%clk 00:07:31]} {[%emt
00:09:53]} e5 {[%clk 00:01:49]} {[%emt 00:01:24]} 27. fxe5 {[%clk 00:06:25]}
{[%emt 00:01:36]} dxe5 {[%clk 00:02:14]} {[%emt 00:00:05]} 28. d5 {[%clk
00:06:36]} {[%emt 00:00:19]} Nf4 {[%clk 00:01:19]} {[%emt 00:01:25]} 29. Qxb6
{[%clk 00:06:56]} {[%emt 00:00:10]} Bd8 {[%clk 00:00:49]} {[%emt 00:00:59]} 30.
Qe3 {[%clk 00:05:59]} {[%emt 00:01:28]} Bg5 {[%clk 00:00:42]} {[%emt 00:00:37]}
31. Qf2 {[%clk 00:05:51]} {[%emt 00:00:37]} Nxd3 {[%clk 00:00:35]} {[%emt
00:00:37]} 32. Rxd3 {[%clk 00:06:18]} {[%emt 00:00:03]} Rxc3 {[%clk 00:00:51]}
{[%emt 00:00:14]} 33. Rxc3 {[%clk 00:05:40]} {[%emt 00:01:09]} Rxc3 {[%clk
00:00:32]} {[%emt 00:00:49]} 34. Bxc3 {[%clk 00:06:05]} {[%emt 00:00:04]} Qxb5
{[%clk 00:01:00]} {[%emt 00:00:02]} 35. Qa7 {[%clk 00:02:16]} {[%emt 00:04:19]}
f6 {[%clk 00:00:33]} {[%emt 00:00:57]} 36. a4 {[%clk 00:00:34]} {[%emt
00:02:13]} Qd7 {[%clk 00:00:33]} {[%emt 00:00:30]} 37. Nf3 {[%clk 00:00:33]}
{[%emt 00:00:31]} Bh6 {[%clk 00:00:35]} {[%emt 00:00:28]} 38. Bxa5 {[%emt
00:00:21]} Qc8 {[%clk 00:00:39]} {[%emt 00:00:25]} 39. Bd2 {[%clk 00:00:52]}
{[%emt 00:00:21]} g5 {[%clk 00:00:47]} {[%emt 00:00:22]} 40. Qb6 {[%clk
00:00:40]} {[%emt 00:00:42]} Kf7 {[%clk 00:00:49]} {[%emt 00:00:28]} 41. h3
{[%clk 00:00:35]} {[%emt 00:00:36]} Bf8 {[%clk 00:01:06]} {[%emt 00:00:12]} 42.
Be3 {[%clk 00:01:02]} {[%emt 00:00:03]} Ba6 {[%clk 00:00:54]} {[%emt 00:00:43]}
43. a5 {[%clk 00:01:09]} {[%emt 00:00:23]} Qc4 {[%clk 00:00:57]} {[%emt
00:00:26]} 44. Qe6+ {[%clk 00:00:36]} {[%emt 00:01:02]} Kg7 {[%clk 00:01:18]}
{[%emt 00:00:09]} 45. Qd7+ {[%clk 00:00:37]} {[%emt 00:00:30]} Kg8 {[%clk
00:01:25]} {[%emt 00:00:23]} 46. Qf5 {[%clk 00:00:38]} {[%emt 00:00:29]} Kg7
{[%clk 00:00:33]} {[%emt 00:01:22]} 47. d6 {[%clk 00:00:45]} {[%emt 00:00:23]}
Qd3 {[%clk 00:00:36]} {[%emt 00:00:27]} 48. Bc5 {[%clk 00:01:02]} {[%emt
00:00:14]} Qc4 {[%clk 00:00:33]} {[%emt 00:00:33]} 49. Bb6 {[%clk 00:01:10]}
{[%emt 00:00:22]} Qc1+ {[%clk 00:00:33]} {[%emt 00:00:29]} 50. Kh2 {[%clk
00:01:33]} Bxd6 {[%clk 00:00:33]} 51. Qd7+ {[%clk 00:01:33]} Kg6 {[%clk
00:00:33]} 52. Qxd6 {[%clk 00:01:33]} Qf4+ {[%clk 00:00:33]} 53. Kh1 {[%clk
00:01:33]} Bb7 {[%clk 00:00:33]} 54. Nd2 {[%clk 00:00:47]} {[%emt 00:04:03]} g4
{[%clk 00:01:41]} {[%emt 00:00:11]} 55. Qd3 {[%clk 00:00:34]} {[%emt 00:00:43]}
gxh3 {[%clk 00:01:42]} {[%emt 00:00:30]} 56. g3 {[%clk 00:00:40]} {[%emt
00:00:24]} Qg4 {[%clk 00:01:25]} {[%emt 00:00:46]} 57. Kh2 {[%emt 00:00:32]}
Qd1 {[%clk 00:01:11]} {[%emt 00:00:29]} 58. Be3 {[%clk 00:00:36]} {[%emt
00:00:47]} Bc8 {[%clk 00:00:33]} {[%emt 00:01:08]} 59. Qf1 {[%clk 00:00:37]}
{[%emt 00:00:28]} Qg4 {[%clk 00:00:35]} {[%emt 00:00:28]} 60. a6 {[%clk
00:00:45]} {[%emt 00:00:23]} h5 {[%clk 00:00:34]} {[%emt 00:00:30]} 61. a7
{[%clk 00:00:45]} {[%emt 00:00:31]} Bb7 {[%clk 00:00:33]} {[%emt 00:00:31]} 62.
Qc4 {[%clk 00:00:37]} {[%emt 00:00:37]} Kg7 {[%clk 00:00:34]} {[%emt 00:00:30]}
63. Qc7+ {[%clk 00:00:43]} {[%emt 00:00:24]} Kg6 {[%clk 00:00:52]} {[%emt
00:00:11]} 64. Qc4 {[%clk 00:00:41]} {[%emt 00:00:32]} Kg7 {[%clk 00:01:18]}
{[%emt 00:00:05]} 65. Bf2 {[%clk 00:00:38]} {[%emt 00:00:32]} h4 {[%clk
00:01:42]} {[%emt 00:00:06]} 66. Qd3 {[%clk 00:00:38]} {[%emt 00:00:30]} Ba8
{[%clk 00:00:50]} {[%emt 00:01:22]} 67. Qe3 {[%clk 00:00:42]} Kf7 {[%clk
00:00:50]} 68. Nc4 {[%clk 00:00:42]} hxg3+ {[%clk 00:00:50]} 69. Bxg3 {[%clk
00:00:42]} Qd1 {[%clk 00:00:37]} {[%emt 00:03:13]} 70. Qd2 {[%emt 00:01:03]}
Qb3 {[%clk 00:00:31]} {[%emt 00:00:04]} 71. Qd7+ {[%clk 00:00:45]} {[%emt
00:00:22]} Kg6 {[%clk 00:00:49]} {[%emt 00:00:12]} 72. Qe8+ {[%clk 00:00:59]}
{[%emt 00:00:16]} Kg5 {[%clk 00:00:36]} {[%emt 00:00:43]} 73. Qg8+ {[%clk
00:01:09]} {[%emt 00:00:20]} Kh5 {[%clk 00:01:01]} {[%emt 00:00:05]} 74. Qh7+
{[%clk 00:01:24]} {[%emt 00:00:15]} 1-0

[Event "1er Tournoi de GM du Barreau de Paris"]
[Site "Paris, France"]
[Date "2019.12.19"]
[Round "6.2"]
[White "DAVID, Alberto"]
[Black "SOCHACKI, Wojtek"]
[Result "1/2-1/2"]
[TimeControl "1h30+30s\cp"]
[WhiteTitle "GM"]
[BlackTitle "IM"]
[WhiteElo "2545"]
[BlackElo "2320"]

1. c4 {[%clk 01:30:26]} {[%emt 00:00:32]} e5 {[%clk 01:30:15]} {[%emt
00:00:46]} 2. g3 {[%clk 01:29:36]} {[%emt 00:01:19]} Nf6 {[%clk 01:30:40]}
{[%emt 00:00:05]} 3. Bg2 {[%clk 01:30:03]} {[%emt 00:00:04]} d5 {[%clk
01:31:05]} {[%emt 00:00:06]} 4. cxd5 {[%clk 01:30:27]} {[%emt 00:00:05]} Nxd5
{[%clk 01:31:32]} {[%emt 00:00:03]} 5. Nc3 {[%clk 01:30:25]} {[%emt 00:00:32]}
Nb6 {[%clk 01:31:57]} {[%emt 00:00:05]} 6. d3 {[%clk 01:24:39]} {[%emt
00:06:15]} Be7 {[%clk 01:32:14]} {[%emt 00:00:13]} 7. Bd2 {[%clk 01:25:04]}
{[%emt 00:00:05]} O-O {[%clk 01:31:51]} {[%emt 00:00:53]} 8. Rc1 {[%clk
01:25:29]} {[%emt 00:00:05]} Re8 {[%clk 01:27:10]} {[%emt 00:05:11]} 9. Nf3
{[%clk 01:22:27]} {[%emt 00:03:32]} Nc6 {[%clk 01:24:43]} {[%emt 00:02:57]} 10.
Ne4 {[%clk 01:15:02]} {[%emt 00:07:55]} Bg4 {[%clk 01:09:57]} {[%emt 00:15:16]}
11. h3 {[%clk 01:02:30]} {[%emt 00:13:02]} Be6 {[%clk 01:10:02]} {[%emt
00:00:25]} 12. O-O {[%clk 00:54:03]} {[%emt 00:08:58]} a5 {[%clk 01:07:39]}
{[%emt 00:02:53]} 13. a3 {[%clk 00:41:23]} {[%emt 00:13:10]} a4 {[%clk
00:56:37]} {[%emt 00:11:32]} 14. Be3 {[%clk 00:39:02]} {[%emt 00:02:51]} Bb3
{[%clk 00:42:24]} {[%emt 00:14:44]} 15. Qd2 {[%clk 00:32:10]} {[%emt 00:07:22]}
Nd7 {[%clk 00:41:59]} {[%emt 00:00:54]} 16. g4 {[%clk 00:22:34]} {[%emt
00:10:06]} Nf8 {[%clk 00:40:51]} {[%emt 00:01:38]} 17. Rxc6 {[%clk 00:20:19]}
{[%emt 00:02:45]} bxc6 {[%clk 00:41:15]} {[%emt 00:00:07]} 18. Nxe5 {[%clk
00:20:44]} {[%emt 00:00:04]} Bd5 {[%clk 00:39:32]} {[%emt 00:02:13]} 19. Rc1
{[%clk 00:18:21]} {[%emt 00:02:54]} Ra6 {[%clk 00:37:57]} {[%emt 00:02:06]} 20.
Qc3 {[%clk 00:16:25]} {[%emt 00:02:25]} Ng6 {[%clk 00:37:08]} {[%emt 00:01:19]}
21. Nxg6 {[%clk 00:12:06]} {[%emt 00:04:49]} 1/2-1/2

[Event "1er Tournoi de GM du Barreau de Paris"]
[Site "Paris, France"]
[Date "2019.12.19"]
[Round "6.3"]
[White "DI NICOLANTONIO, Lucas"]
[Black "LOISEAU, Quentin"]
[Result "0-1"]
[TimeControl "1h30+30s\cp"]
[WhiteTitle "IM"]
[BlackTitle "IM"]
[WhiteElo "2408"]
[BlackElo "2470"]

1. e4 {[%clk 01:24:04]} {[%emt 00:06:54]} c6 {[%clk 01:29:28]} {[%emt
00:01:33]} 2. d4 {[%clk 01:21:10]} {[%emt 00:03:24]} d5 {[%clk 01:29:53]}
{[%emt 00:00:05]} 3. f3 {[%clk 01:20:40]} {[%emt 00:00:59]} e5 {[%clk
01:29:06]} {[%emt 00:01:18]} 4. dxe5 {[%clk 01:18:21]} {[%emt 00:02:49]} Bc5
{[%clk 01:29:32]} {[%emt 00:00:04]} 5. Nc3 {[%clk 00:47:32]} {[%emt 00:31:19]}
Ne7 {[%clk 01:29:40]} {[%emt 00:00:21]} 6. f4 {[%clk 00:36:59]} {[%emt
00:11:02]} Qb6 {[%clk 01:20:53]} {[%emt 00:09:18]} 7. Nf3 {[%clk 00:32:52]}
{[%emt 00:04:37]} Bf2+ {[%clk 01:07:21]} {[%emt 00:14:02]} 8. Ke2 {[%clk
00:32:58]} {[%emt 00:00:24]} a5 {[%clk 01:05:02]} {[%emt 00:02:49]} 9. exd5
{[%clk 00:24:51]} {[%emt 00:08:37]} cxd5 {[%clk 01:05:07]} {[%emt 00:00:24]} 10.
Qd3 {[%clk 00:23:18]} {[%emt 00:02:03]} Nbc6 {[%clk 01:04:15]} {[%emt
00:01:23]} 11. Nd1 {[%clk 00:04:49]} {[%emt 00:18:58]} Bc5 {[%clk 00:59:41]}
{[%emt 00:05:04]} 12. Qb3 {[%clk 00:04:51]} {[%emt 00:00:29]} Nb4 {[%clk
00:56:56]} {[%emt 00:03:15]} 13. a4 {[%clk 00:02:30]} {[%emt 00:02:50]} d4
{[%clk 00:50:02]} {[%emt 00:07:24]} 14. Ke1 {[%clk 00:02:39]} {[%emt 00:00:21]}
Bf5 {[%clk 00:50:16]} {[%emt 00:00:16]} 15. Bb5+ {[%clk 00:02:30]} {[%emt
00:00:39]} Nec6 {[%clk 00:50:14]} {[%emt 00:00:32]} 0-1